bitfinex/quotes_SOLUSD_20251030
["timestamp","ask_amount","ask_price","bid_price","bid_amount"]
[1761849528857,9.99857076,181.9,181.86,6.21873529]
[1761849529066,4.01829913,181.89,181.86,6.21873529]
[1761849529360,4.01829913,181.89,181.86,0.72]
[1761849529563,4.01829913,181.89,181.85,11.27924116]
[1761849529772,4.01829913,181.89,181.86,0.72]
[1761849529971,0.2,181.9,181.86,6.50027163]
[1761849530182,0.2,181.9,181.88,20.592]
[1761849530589,0.2,181.9,181.88,26.81002542]
[1761849531087,0.2,181.9,181.88,21.312]
[1761849531286,0.2,181.9,181.88,0.72]
[1761849531656,0.2,181.9,181.8,5.5004844]
[1761849531657,6.49027163,181.89,181.8,5.5004844]
[1761849531859,5.78027163,181.84,181.79,12.00108448]
[1761849532198,5.78027163,181.84,181.82,20.592]
[1761849532562,5.78027163,181.83,181.81,20.592]
[1761849532868,5.78027163,181.83,181.82,20.592]
[1761849533493,0.71,181.84,181.82,20.592]
[1761849533790,5.78027163,181.83,181.82,20.592]
[1761849533990,5.78027163,181.83,181.81,20.592]
[1761849534162,0.71,181.88,181.82,0.72]
[1761849534561,5.78027163,181.86,181.82,0.72]
[1761849535673,5.78027163,181.84,181.81,20.592]
[1761849535985,5.78027163,181.85,181.82,26.81181084]
[1761849536484,5.78027163,181.85,181.82,20.592]
[1761849537062,5.78027163,181.84,181.82,20.592]
[1761849537387,5.78027163,181.84,181.82,21.312]
[1761849537561,5.78027163,181.84,181.82,20.592]
[1761849537758,5.78027163,181.85,181.83,0.72]
[1761849537956,0.2,181.9,181.83,20.592]
[1761849538162,9.99098623,181.9,181.85,26.37227163]
[1761849538382,5.98027163,181.9,181.86,0.72]
[1761849538892,0.2,181.9,181.86,0.72]
[1761849539086,15.48971003,181.9,181.86,0.72]
[1761849539293,12.18787583,181.9,181.85,20.592]
[1761849539594,11.47787583,181.9,181.82,5.49993808]
[1761849539902,5.78027163,181.84,181.79,6.22081002]
[1761849540190,8.51752242,181.89,181.79,21.312]
[1761849540191,5.49912203,181.85,181.79,21.312]
[1761849540392,9.78882769,181.84,181.76,0.72]
[1761849540598,5.78027163,181.81,181.76,0.72]
[1761849541112,9.78882769,181.84,181.76,0.72]
[1761849541113,5.78027163,181.84,181.76,26.81368503]
[1761849541263,5.78027163,181.84,181.78,5.78027163]
[1761849541598,5.78027163,181.81,181.75,0.72]
[1761849541769,5.78027163,181.77,181.72,0.72]
[1761849541970,5.78027163,181.77,181.74,20.592]
[1761849542199,5.78027163,181.79,181.75,20.592]
[1761849542702,5.78027163,181.79,181.74,20.592]
[1761849542992,5.78027163,181.78,181.75,20.592]
[1761849543374,0.71,181.79,181.74,5.50224363]
[1761849543581,5.78027163,181.78,181.74,5.50224363]
[1761849543981,11.28156484,181.78,181.73,5.50265912]
[1761849544190,6.49027163,181.78,181.73,5.50265912]
[1761849544584,11.99148945,181.78,181.72,26.37227163]
[1761849544901,5.78027163,181.76,181.71,0.72]
[1761849545204,6.21121782,181.78,181.71,12.00351963]
[1761849545376,5.78027163,181.77,181.71,12.00351963]
[1761849545789,5.78027163,181.77,181.71,25.76170575]
[1761849547674,11.28180758,181.77,181.71,12.00351963]
[1761849548497,5.78027163,181.77,181.71,12.00351963]
[1761849548706,0.71,181.83,181.76,5.78027163]
[1761849548912,6.20965821,181.83,181.76,11.28173556]
[1761849549090,5.78027163,181.82,181.76,0.72]
[1761849549292,5.78027163,181.82,181.74,20.592]
[1761849549293,5.78027163,181.8,181.74,26.80434339]
[1761849549602,5.78027163,181.75,181.71,0.71]
[1761849549793,5.78027163,181.76,181.71,26.80522614]
[1761849550180,5.78027163,181.77,181.72,0.71]
[1761849550383,5.78027163,181.76,181.72,0.71]
[1761849551007,5.78027163,181.76,181.71,26.09522614]
[1761849551205,5.50086591,181.79,181.72,6.49027163]
[1761849551409,11.28113754,181.79,181.73,5.78027163]
[1761849551612,11.2808869,181.8,181.74,26.37227163]
[1761849551977,5.78027163,181.78,181.74,20.592]
[1761849552286,5.78027163,181.76,181.71,26.09522614]
[1761849552997,5.78027163,181.75,181.71,20.592]
[1761849553201,5.78027163,181.74,181.68,5.5039341]
[1761849553389,5.78027163,181.74,181.69,0.71]
[1761849553887,5.78027163,181.74,181.71,20.592]
[1761849554085,11.28227694,181.76,181.71,20.592]
[1761849554282,5.78027163,181.75,181.71,20.592]
[1761849554606,6.46027163,181.75,181.71,20.592]
[1761849554990,11.96262656,181.75,181.71,20.592]
[1761849555393,8.4534876,181.75,181.71,20.592]
[1761849556286,2.27113267,181.74,181.71,20.592]
[1761849556682,6.16169813,181.77,181.72,0.7]
[1761849556882,5.50169813,181.77,181.72,0.7]
[1761849557099,26.70180799,181.85,181.72,2.97113267]
[1761849557307,2.27113267,181.79,181.72,0.7]
[1761849557483,13.92013966,181.81,181.72,2.97113267]
[1761849557484,2.27113267,181.78,181.72,2.97113267]
[1761849557690,2.27113267,181.73,181.67,0.7]
[1761849557905,2.27113267,181.73,181.67,2.97113267]
[1761849558103,2.27113267,181.72,181.68,20.592]
[1761849558305,7.77417469,181.72,181.7,20.592]
[1761849558678,2.27113267,181.72,181.7,20.592]
[1761849559907,2.27113267,181.71,181.67,26.79619014]
[1761849560097,2.27113267,181.72,181.67,26.79619014]
[1761849560907,2.27113267,181.71,181.68,6.20415858]
[1761849562113,2.27113267,181.69,181.65,20.592]
[1761849562313,2.27113267,181.68,181.65,20.592]
[1761849562619,2.27113267,181.69,181.66,20.592]
[1761849562910,7.77452339,181.71,181.66,21.292]
[1761849563084,2.27113267,181.7,181.66,21.292]
[1761849563287,5.78571398,181.7,181.66,26.79674556]
[1761849563494,5.78571398,181.7,181.67,0.7]
[1761849564632,5.78571398,181.69,181.64,0.7]
[1761849564788,5.78571398,181.66,181.63,20.592]
[1761849565414,8.79534792,181.66,181.62,0.7]
[1761849565596,6.16339072,181.71,181.65,20.592]
[1761849565913,8.79534792,181.68,181.65,20.592]
[1761849566415,8.79534792,181.68,181.65,0.7]
[1761849566613,0.66,181.71,181.65,21.292]
[1761849566805,8.79534792,181.68,181.65,21.292]
[1761849567412,8.79534792,181.68,181.65,20.592]
[1761849567613,8.79534792,181.68,181.66,0.7]
[1761849568225,5.50329317,181.71,181.65,20.592]
[1761849568395,8.79534792,181.7,181.66,0.7]
[1761849568717,8.79534792,181.68,181.66,20.592]
[1761849568917,2.87652316,181.75,181.67,9.49534792]
[1761849569116,8.79534792,181.72,181.68,0.7]
[1761849570326,11.67187108,181.75,181.7,20.592]
[1761849570522,17.17397058,181.75,181.7,26.09538153]
[1761849570699,17.17397058,181.75,181.71,0.7]
[1761849571314,8.79534792,181.74,181.71,0.7]
[1761849572001,8.79534792,181.73,181.7,20.592]
[1761849572207,4.01135168,181.72,181.67,21.292]
[1761849572504,8.79534792,181.73,181.67,29.38734792]
[1761849572715,8.79534792,181.73,181.67,30.08734792]
[1761849573024,8.79534792,181.72,181.67,30.08734792]
[1761849573225,8.79534792,181.72,181.67,29.38734792]
[1761849573419,8.79534792,181.72,181.68,0.7]
[1761849573617,8.37867086,181.75,181.68,0.7]
[1761849573925,4.01314141,181.74,181.68,9.49534792]
[1761849574091,2.87652316,181.75,181.7,8.79534792]
[1761849574294,11.67187108,181.75,181.71,0.7]
[1761849574522,2.87652316,181.75,181.71,0.7]
[1761849574717,8.79534792,181.76,181.72,20.592]
[1761849574896,8.79534792,181.78,181.72,29.38734792]
[1761849575099,4.01536085,181.77,181.76,20.592]
[1761849575318,8.79534792,181.8,181.75,8.79534792]
[1761849575516,4.01809198,181.79,181.76,0.7]
[1761849575717,8.79534792,181.8,181.76,0.7]
[1761849576028,4.01787142,181.79,181.76,0.7]
[1761849576424,4.01787142,181.79,181.76,6.20149575]
[1761849576604,14.29582582,181.81,181.76,0.7]
[1761849576795,12.81604157,181.8,181.76,0.7]
[1761849577119,12.81604157,181.8,181.76,20.592]
[1761849577120,12.81604157,181.79,181.76,20.592]
[1761849577311,4.02069365,181.78,181.76,20.592]
[1761849577510,9.03524894,181.82,181.76,0.7]
[1761849577816,8.79534792,181.8,181.76,0.7]
[1761849578015,8.79534792,181.77,181.71,0.7]
[1761849578206,8.79534792,181.75,181.71,0.7]
[1761849578402,8.79534792,181.75,181.71,6.20319659]
[1761849578600,8.79534792,181.73,181.69,6.20385717]
[1761849578935,5.50210003,181.75,181.69,0.7]
[1761849578936,8.79534792,181.72,181.69,0.7]
[1761849579607,8.79534792,181.72,181.67,14.29958157]
[1761849579814,8.79534792,181.72,181.68,21.272]
[1761849580002,6.17210003,181.75,181.69,20.592]
[1761849580203,8.79534792,181.72,181.69,21.272]
[1761849580814,8.79534792,181.72,181.69,0.68]
[1761849581397,8.79534792,181.74,181.7,0.68]
[1761849581608,4.02432724,181.73,181.7,9.47534792]
[1761849581829,8.79534792,181.75,181.7,9.47534792]
[1761849582013,4.0246931,181.74,181.7,9.47534792]
[1761849582421,12.82004102,181.74,181.7,6.18337291]
[1761849582607,4.02594991,181.73,181.7,0.68]
[1761849582920,4.02594991,181.73,181.69,34.89116016]
[1761849583225,6.17198841,181.76,181.69,34.89116016]
[1761849583226,5.50115524,181.78,181.72,20.592]
[1761849583434,3.54802155,181.76,181.72,20.592]
[1761849583631,4.02904432,181.75,181.72,20.592]
[1761849584202,4.02904432,181.75,181.72,26.09474315]
[1761849584404,4.02904432,181.74,181.72,26.09474315]
[1761849584602,4.49990928,181.78,181.73,4.22802155]
[1761849584912,7.77424886,181.77,181.74,3.54802155]
[1761849585214,4.03387851,181.76,181.74,3.54802155]
[1761849585427,4.03387851,181.75,181.74,24.14002155]
[1761849585625,4.03387851,181.75,181.74,20.592]
[1761849585824,4.03387851,181.76,181.72,0.68]
[1761849586003,4.03387851,181.75,181.69,0.68]
[1761849586206,9.78882769,181.74,181.64,0.68]
[1761849586552,3.54802155,181.66,181.56,6.1878211]
[1761849586745,4.49990928,181.71,181.65,3.54802155]
[1761849586905,4.03444184,181.7,181.68,3.54802155]
[1761849587217,0.67,181.73,181.68,3.54802155]
[1761849587418,4.03550087,181.72,181.68,8.78770565]
[1761849587931,4.03550087,181.72,181.69,8.78770565]
[1761849588132,4.03550087,181.72,181.67,14.9721918]
[1761849588321,4.03550087,181.72,181.68,0.68]
[1761849588709,4.03550087,181.72,181.68,9.46770565]
[1761849588908,29.65234425,181.77,181.69,9.46770565]
[1761849588909,4.49990928,181.76,181.69,9.46770565]
[1761849589122,4.03632256,181.75,181.7,20.592]
[1761849589611,4.03632256,181.74,181.7,21.272]
[1761849589810,4.03632256,181.74,181.7,20.592]
[1761849590147,4.03632256,181.73,181.7,26.77551286]
[1761849590352,5.16990928,181.77,181.7,26.09551286]
[1761849590517,7.75954655,181.76,181.71,12.34]
[1761849590711,8.78770565,181.74,181.68,0.68]
[1761849590922,12.82413866,181.73,181.72,20.592]
[1761849591122,16.54600314,181.73,181.69,20.592]
[1761849591332,4.03643301,181.72,181.69,20.592]
[1761849591566,4.03643301,181.71,181.69,21.272]
[1761849591748,8.78770565,181.73,181.69,0.68]
[1761849592037,12.82300805,181.72,181.69,0.68]
[1761849592210,4.0353024,181.71,181.7,20.592]
[1761849592616,4.0353024,181.71,181.7,0.68]
[1761849593045,4.49990928,181.78,181.72,20.592]
[1761849593255,7.75960755,181.77,181.73,12.34]
[1761849593436,4.03646345,181.76,181.74,0.68]
[1761849593637,4.03646345,181.75,181.74,0.68]
[1761849594238,13.49598133,181.75,181.66,13.76135992]
[1761849594444,7.73301591,181.74,181.69,20.592]
[1761849594761,8.78770565,181.72,181.71,20.592]
[1761849594975,4.03827568,181.72,181.71,20.592]
[1761849595333,8.78770565,181.72,181.71,20.592]
[1761849595534,12.82598133,181.72,181.71,20.592]
[1761849595956,8.78770565,181.72,181.71,20.592]
[1761849596265,12.82549516,181.72,181.7,20.592]
[1761849596565,13.49549516,181.71,181.61,0.68]
[1761849596776,8.78770565,181.65,181.61,0.68]
[1761849596931,0.67,181.7,181.61,0.68]
[1761849597132,0.67,181.7,181.55,18.19153941]
[1761849597133,8.78770565,181.64,181.58,0.68]
[1761849597336,5.16990928,181.69,181.59,11.66]
[1761849597561,8.40088147,181.68,181.61,20.592]
[1761849597866,8.78770565,181.63,181.61,20.592]
[1761849598071,8.78770565,181.63,181.61,26.09828428]
[1761849598576,0.67,181.67,181.61,26.09828428]
[1761849598749,8.78770565,181.63,181.61,26.09828428]
[1761849598955,8.78770565,181.63,181.61,20.592]
[1761849599546,8.78770565,181.63,181.61,26.09827994]
[1761849599751,8.78770565,181.64,181.62,0.68]
[1761849600174,10.67381907,181.69,181.62,0.68]
[1761849600175,0.67,181.69,181.62,0.68]
[1761849600379,7.72727469,181.69,181.62,0.68]
[1761849600569,12.82134327,181.68,181.62,0.68]
[1761849600775,4.49990928,181.71,181.6,5.50652072]
[1761849600776,4.03380551,181.67,181.6,5.50652072]
[1761849600976,4.03380551,181.66,181.61,20.592]
[1761849601283,4.03380551,181.65,181.62,0.68]
[1761849601480,8.78770565,181.67,181.62,0.68]
[1761849601658,10.67380253,181.69,181.62,0.68]
[1761849601659,12.82061098,181.66,181.62,0.68]
[1761849601856,4.03290588,181.65,181.62,6.18578563]
[1761849602266,8.78770565,181.66,181.62,6.18578563]
[1761849602677,4.03220848,181.65,181.62,6.18578563]
[1761849602878,8.78770565,181.66,181.62,6.18578563]
[1761849603875,13.28761493,181.7,181.65,20.592]
[1761849604176,8.78770565,181.73,181.68,8.78770565]
[1761849604362,4.03280928,181.72,181.69,0.68]
[1761849605283,8.78770565,181.74,181.69,0.68]
[1761849605791,8.78770565,181.74,181.7,5.50357732]
[1761849605971,9.45770565,181.74,181.7,5.50357732]
[1761849606281,8.78770565,181.73,181.68,14.29187733]
[1761849606458,8.78770565,181.73,181.68,5.50417168]
[1761849606663,9.45770565,181.73,181.68,5.50417168]
[1761849606967,7.37618256,181.76,181.71,8.78770565]
[1761849607162,8.78770565,181.77,181.72,20.592]
[1761849607366,3.65782612,181.76,181.72,29.37970565]
[1761849607567,16.16354118,181.79,181.73,9.46770565]
[1761849607764,8.78770565,181.78,181.73,0.68]
[1761849608281,8.78770565,181.77,181.73,0.68]
[1761849608482,8.78770565,181.79,181.73,9.46770565]
[1761849608696,8.78770565,181.75,181.69,0.68]
[1761849608868,8.78770565,181.79,181.73,8.78770565]
[1761849609075,14.2883076,181.8,181.74,8.78770565]
[1761849609472,8.78770565,181.79,181.74,8.78770565]
[1761849609675,8.78770565,181.76,181.7,20.592]
[1761849609887,8.78770565,181.74,181.7,20.592]
[1761849610085,8.78770565,181.74,181.71,20.592]
[1761849610363,0.7,181.73,181.67,0.72]
[1761849610574,8.78770565,181.73,181.69,20.592]
[1761849610776,8.78770565,181.72,181.69,20.592]
[1761849611287,0.7,181.72,181.69,20.592]
[1761849611464,8.78770565,181.72,181.69,20.592]
[1761849611667,0.7,181.74,181.69,20.592]
[1761849611866,8.78770565,181.73,181.69,20.592]
[1761849612167,8.78770565,181.73,181.7,5.50357732]
[1761849612371,6.20178408,181.76,181.7,5.50357732]
[1761849612671,8.78770565,181.74,181.7,5.50357732]
[1761849612981,8.78770565,181.73,181.69,26.09587854]
[1761849613284,8.78770565,181.72,181.69,20.592]
[1761849613470,8.78770565,181.71,181.69,20.592]
[1761849613959,9.48770565,181.72,181.69,20.592]
[1761849614368,8.78770565,181.71,181.69,20.592]
[1761849614566,8.78770565,181.73,181.69,26.09586338]
[1761849614975,8.78770565,181.74,181.7,0.72]
[1761849615173,8.78770565,181.73,181.69,26.09586338]
[1761849615377,8.78770565,181.72,181.69,26.09586338]
[1761849615591,0.66,181.75,181.69,26.09586338]
[1761849615768,8.78770565,181.74,181.69,26.09586338]
[1761849616297,9.44770565,181.74,181.69,26.79586338]
[1761849616780,14.95016557,181.74,181.69,26.79586338]
[1761849616990,14.95016557,181.74,181.69,26.79575559]
[1761849617167,9.44770565,181.74,181.69,26.79575559]
[1761849618401,9.44770565,181.74,181.69,35.58346124]
[1761849618774,9.44770565,181.74,181.69,26.79575559]
[1761849619489,8.78770565,181.74,181.7,0.7]
[1761849619674,6.16115524,181.78,181.7,0.7]
[1761849619876,6.16115524,181.78,181.71,8.78770565]
[1761849619877,8.78770565,181.77,181.71,8.78770565]
[1761849620495,8.03542753,181.81,181.75,8.78770565]
[1761849620683,8.03542753,181.81,181.72,21.292]
[1761849620684,12.44381031,181.8,181.74,8.78770565]
[1761849620891,3.65610466,181.79,181.74,8.78770565]
[1761849621075,3.65610466,181.79,181.74,9.48770565]
[1761849621485,3.53551825,181.81,181.75,14.98976892]
[1761849621696,3.65830648,181.8,181.77,8.78770565]
[1761849621868,5.49972979,181.83,181.77,8.78770565]
[1761849621869,8.78770565,181.83,181.77,8.78770565]
[1761849622067,17.82214529,181.84,181.78,9.48770565]
[1761849622292,14.28681663,181.85,181.8,8.78770565]
[1761849622470,13.10600738,181.84,181.78,29.37970565]
[1761849622676,9.44770565,181.84,181.78,29.37970565]
[1761849622867,8.78770565,181.83,181.78,29.37970565]
[1761849623275,8.78770565,181.83,181.78,30.07970565]
[1761849623591,11.66261491,181.85,181.79,14.98855828]
[1761849623793,2.87490926,181.85,181.81,8.78770565]
[1761849624002,18.78643171,181.86,181.79,19.95298421]
[1761849624304,14.28652243,181.86,181.81,8.78770565]
[1761849624500,14.28652243,181.86,181.78,20.592]
[1761849624501,8.78770565,181.84,181.78,20.592]
[1761849624700,8.78770565,181.82,181.79,20.592]
[1761849624873,8.78770565,181.83,181.79,20.592]
[1761849625069,8.78770565,181.82,181.79,20.592]
[1761849625294,0.66,181.83,181.79,20.592]
[1761849625491,9.44770565,181.83,181.79,26.09277135]
[1761849625684,5.49909777,181.85,181.79,26.79277135]
[1761849625892,8.78770565,181.84,181.79,26.79277135]
[1761849626396,9.44770565,181.85,181.8,0.7]
[1761849626621,8.78770565,181.86,181.8,9.48770565]
[1761849626911,17.16081054,181.87,181.81,9.48770565]
[1761849627074,17.16081054,181.87,181.81,8.78770565]
[1761849627075,2.87460807,181.87,181.81,8.78770565]
[1761849627414,15.14524405,181.9,181.84,8.78770565]
[1761849627582,9.50682668,181.9,181.84,11.97214305]
[1761849628002,6.43284364,181.89,181.83,31.86448576]
[1761849628187,5.77284364,181.86,181.83,20.592]
[1761849629005,5.77284364,181.87,181.83,20.592]
[1761849629382,5.77284364,181.86,181.83,20.592]
[1761849630095,0.66,181.86,181.83,20.592]
[1761849630501,6.43284364,181.86,181.83,20.592]
[1761849631020,5.77284364,181.86,181.83,20.592]
[1761849631187,6.43284364,181.86,181.83,20.592]
[1761849631387,2.9280518,181.86,181.83,20.592]
[1761849631810,2.2680518,181.86,181.83,20.592]
[1761849632207,2.2680518,181.87,181.83,20.592]
[1761849632518,7.76653396,181.87,181.83,20.592]
[1761849632822,8.42653396,181.87,181.83,20.592]
[1761849633005,2.2680518,181.88,181.84,0.7]
[1761849633317,2.2680518,181.88,181.83,82.292]
[1761849633516,2.2680518,181.88,181.84,0.7]
[1761849634497,2.2680518,181.88,181.84,6.1992709]
[1761849634914,2.9280518,181.88,181.84,5.4992709]
[1761849635115,0.2,181.9,181.85,0.7]
[1761849635421,0.2,181.9,181.86,2.2680518]
[1761849635612,2.4680518,181.9,181.85,0.7]
[1761849635799,2.4680518,181.9,181.86,5.49873529]
[1761849636004,0.2,181.9,181.85,6.19896603]
[1761849636407,2.4680518,181.9,181.84,5.49934007]
[1761849636707,2.4680518,181.9,181.85,0.7]
[1761849637092,2.2680518,181.87,181.83,26.09156824]
[1761849637806,5.49813063,181.88,181.83,26.79156824]
[1761849638012,2.2680518,181.87,181.83,26.79156824]
[1761849638428,2.2680518,181.87,181.85,20.592]
[1761849639124,2.2680518,181.86,181.83,20.592]
[1761849639626,2.2680518,181.84,181.78,17.80092621]
[1761849639803,2.2680518,181.84,181.81,26.0921825]
[1761849640010,2.2680518,181.84,181.81,26.8121825]
[1761849640411,2.2680518,181.84,181.81,26.0921825]
[1761849640607,6.1488488,181.86,181.8,5.50048211]
[1761849640801,2.2680518,181.84,181.8,5.50048211]
[1761849641006,2.2680518,181.84,181.8,26.09248211]
[1761849641321,2.2680518,181.84,181.8,26.81248211]
[1761849641828,0.2,181.9,181.8,26.09248211]
[1761849642026,5.69753717,181.9,181.83,2.2680518]
[1761849642322,2.2680518,181.88,181.83,2.2680518]
[1761849642525,2.2680518,181.88,181.83,2.9880518]
[1761849642725,2.2680518,181.88,181.84,0.72]
[1761849643510,2.2680518,181.89,181.84,0.72]
[1761849643702,0.2,181.9,181.85,7.76708946]
[1761849644029,2.4680518,181.9,181.85,5.49903766]
[1761849644229,0.2,181.9,181.86,0.72]
[1761849644422,2.4680518,181.9,181.86,0.72]
[1761849644617,0.2,181.9,181.86,0.72]
[1761849644826,0.2,181.9,181.86,2.9880518]
[1761849645009,0.2,181.9,181.89,22.8600518]
[1761849645535,0.2,181.9,181.89,23.5800518]
[1761849645835,0.2,181.9,181.89,29.07788015]
[1761849646206,0.2,181.9,181.89,40.63788015]
[1761849646907,0.2,181.9,181.89,20.592]
[1761849647610,5.97221345,181.9,181.87,5.4983306]
[1761849648007,0.2,181.9,181.87,5.4983306]
[1761849648906,0.2,181.9,181.86,26.81067145]
[1761849649108,6.62221345,181.9,181.86,26.09067145]
[1761849649533,5.97221345,181.9,181.86,26.09067145]
[1761849649705,5.77221345,181.89,181.86,20.592]
[1761849649911,5.77221345,181.88,181.86,20.592]
[1761849650109,5.77221345,181.88,181.87,20.592]
[1761849650312,5.77221345,181.88,181.84,61.7]
[1761849650513,5.77221345,181.86,181.81,26.00991419]
[1761849650718,5.77221345,181.86,181.82,26.0918854]
[1761849651329,5.77221345,181.86,181.82,20.592]
[1761849652714,5.77221345,181.86,181.82,21.312]
[1761849652911,5.77221345,181.86,181.82,26.09170468]
[1761849653535,5.77221345,181.83,181.77,20.24578454]
[1761849653738,5.77221345,181.83,181.78,5.50090548]
[1761849654037,5.77221345,181.83,181.79,20.592]
[1761849654250,5.49878136,181.86,181.68,1.99999999]
[1761849654251,0.65,181.82,181.68,1.99999999]
[1761849654421,0.65,181.85,181.76,0.72]
[1761849654748,5.77221345,181.81,181.77,20.592]
[1761849655036,5.49961422,181.84,181.77,31.86562857]
[1761849655210,11.27123444,181.86,181.79,5.77221345]
[1761849655409,11.27066769,181.87,181.81,5.77221345]
[1761849656132,5.77221345,181.87,181.81,6.49221345]
[1761849656336,6.42221345,181.87,181.81,6.49221345]
[1761849656669,5.77221345,181.86,181.81,6.49221345]
[1761849656811,5.77221345,181.86,181.82,5.499945]
[1761849657141,5.77221345,181.86,181.82,6.219945]
[1761849657442,11.2706649,181.87,181.82,6.219945]
[1761849657937,5.77221345,181.87,181.83,0.72]
[1761849658322,0.65,181.89,181.83,0.72]
[1761849658642,5.77221345,181.88,181.83,0.72]
[1761849658807,11.92013376,181.89,181.83,6.49221345]
[1761849659013,0.2,181.9,181.89,20.592]
[1761849660133,0.2,181.9,181.88,20.592]
[1761849660343,5.77221345,181.89,181.88,20.592]
[1761849660560,15.56104114,181.89,181.84,82.292]
[1761849660759,5.77221345,181.87,181.86,20.592]
[1761849660937,11.27064639,181.87,181.84,20.592]
[1761849661137,5.77221345,181.85,181.84,20.592]
[1761849661338,5.77221345,181.85,181.82,20.592]
[1761849661736,5.77221345,181.85,181.8,6.49221345]
[1761849661737,0.65,181.84,181.83,20.592]
[1761849662044,0.65,181.84,181.7,1.99999999]
[1761849662045,9.78882769,181.83,181.76,5.50176056]
[1761849662249,5.77221345,181.81,181.79,20.592]
[1761849662445,5.77221345,181.82,181.79,20.592]
[1761849663371,5.77221345,181.81,181.79,20.592]
[1761849663664,5.77221345,181.81,181.8,20.592]
[1761849664545,5.77221345,181.81,181.79,20.592]
[1761849664952,5.77221345,181.81,181.8,20.592]
[1761849665147,6.14964443,181.83,181.79,20.592]
[1761849665349,5.77221345,181.82,181.79,20.592]
[1761849665566,6.42221345,181.82,181.79,20.592]
[1761849665871,5.77221345,181.81,181.77,26.09341024]
[1761849666045,5.77221345,181.8,181.78,20.592]
[1761849666242,5.77221345,181.79,181.7,5.77221345]
[1761849666466,5.77221345,181.75,181.7,5.77221345]
[1761849666760,5.77221345,181.74,181.72,20.592]
[1761849666966,0.65,181.77,181.73,20.592]
[1761849667167,5.77221345,181.78,181.72,6.49221345]
[1761849667482,5.77221345,181.76,181.73,20.592]
[1761849667769,5.77221345,181.74,181.73,20.592]
[1761849668187,5.77221345,181.76,181.73,20.592]
[1761849668398,5.77221345,181.74,181.68,5.50413922]
[1761849668562,5.77221345,181.74,181.68,11.99635267]
[1761849668889,5.77221345,181.75,181.69,5.77221345]
[1761849669199,5.77221345,181.73,181.62,20.592]
[1761849669488,5.50231818,181.75,181.62,20.592]
[1761849669489,5.77221345,181.74,181.71,20.592]
[1761849670095,11.94453163,181.75,181.69,27.08421345]
[1761849670587,5.50055005,181.8,181.73,5.77221345]
[1761849670885,5.77221345,181.78,181.72,26.36421345]
[1761849671090,5.77221345,181.76,181.73,20.592]
[1761849671377,5.77221345,181.75,181.69,0.72]
[1761849671587,5.77221345,181.75,181.71,20.592]
[1761849671789,6.44221345,181.75,181.71,20.592]
[1761849671961,19.25510259,181.77,181.7,20.592]
[1761849672160,5.77221345,181.75,181.7,0.72]
[1761849672580,6.44221345,181.75,181.7,0.72]
[1761849673162,11.94443722,181.75,181.69,31.86784619]
[1761849673662,11.27443722,181.75,181.7,5.77221345]
[1761849673881,5.77221345,181.75,181.7,5.77221345]
[1761849674085,5.77221345,181.75,181.7,6.49221345]
[1761849674783,5.77221345,181.75,181.69,26.36421345]
[1761849674784,0.67,181.74,181.69,26.36421345]
[1761849674959,5.50207238,181.75,181.69,32.58796756]
[1761849675160,5.50207238,181.75,181.7,5.77221345]
[1761849675584,5.50207238,181.75,181.7,6.43221345]
[1761849676013,5.77221345,181.74,181.7,0.66]
[1761849676615,6.16207238,181.75,181.7,0.66]
[1761849676915,6.43221345,181.74,181.69,82.292]
[1761849677122,5.77221345,181.74,181.69,82.292]
[1761849677304,8.37803751,181.77,181.71,5.77221345]
[1761849677483,8.64871782,181.77,181.71,5.77221345]
[1761849677684,2.87650437,181.77,181.73,5.77221345]
[1761849677881,2.87650437,181.77,181.72,6.43221345]
[1761849678411,5.77221345,181.78,181.73,6.43221345]
[1761849678632,11.27313231,181.79,181.73,6.43221345]
[1761849679104,5.77221345,181.79,181.73,0.66]
[1761849679286,5.77221345,181.79,181.74,0.66]
[1761849679684,6.43221345,181.79,181.74,0.66]
[1761849680008,6.43221345,181.79,181.72,26.09496003]
[1761849680009,5.77221345,181.75,181.72,20.592]